Cogmind - Beta 9.2 @@@ ROGUE MODE // 2019.12.04 @ 20:27:21 Player: Zinc Result: Destroyed by Y-45 Defender with Heavy Assault Rifle Performance ------------- Evolutions (2) 1000 Regions Visited (6) 1200 Robots Destroyed (66) 330 Value Destroyed (1736) 1736 Prototype IDs (5) 100 Alien Tech Used (0) 0 Bonus (0) 0 TOTAL SCORE: 4366 Bonus ------- None Cogmind --------- Core Integrity 0/550 Matter 297/300 Energy 100/100 System Corruption 0% Temperature Cool (9) Movement Core (550) Ox10 Location -8/Materials Parts ------- > --- POWER (1) -------- (None) > --- PROPULSION (3) --- (None) > --- UTILITY (5) ------ High-capacity Storage Unit > --- WEAPON (2) ------- (None) > --- INVENTORY (12) --- Light Nuclear Core Cesium-ion Thruster Improved Heat Sink High-capacity Storage Unit High-capacity Storage Unit Improved Sensor Array Experimental Sensor Array Hacking Suite System Shield System Shield Datajack Improved Datajack Peak State ------------ > --- POWER ------------ Light Angular Momentum Engine > --- PROPULSION ------- Light Treads Light Treads > --- UTILITY ---------- High-capacity Storage Unit High-capacity Storage Unit Experimental Sensor Array Improved Signal Interpreter Hacking Suite > --- WEAPON ----------- Light EM Pulse Cannon Heavy Assault Rifle > --- INVENTORY -------- Light Nuclear Core Cesium-ion Thruster Improved Heat Sink High-capacity Storage Unit High-capacity Storage Unit Improved Sensor Array Improved Targeting Computer Hacking Suite System Shield Rocket Launcher Datajack Datajack [Rating: 26] Favorites ----------- Power Heavy Ion Engine Engine Heavy Ion Engine Propulsion Light Treads Treads Light Treads Leg Aluminum Leg Wheel Wheel Utility High-capacity Storage Unit Device Experimental Sensor Array Storage High-capacity Storage Unit Processor Improved Signal Interpreter Hackware Hacking Suite Protection Hardened Light Armor Plating Weapon Heavy Assault Rifle Energy Gun Improved EM Shotgun Energy Cannon Light EM Pulse Cannon Ballistic Gun Heavy Assault Rifle Launcher Rocket Launcher Impact Weapon Flail Special Melee Weapon Datajack Build | -11 -10 -9 -9 -9 -8 -8 ------- Run | Scr Mat Mat Min Exi Min Mat Slots Evolved 4 | . . 2 . . . 2 Power . | . . . . . . . Propulsion 1 | . . . . . . 1 Utility 3 | . . 2 . . . 1 Weapon . | . . . . . . . Parts Attached 50 | 5 12 19 3 . 7 4 Power 4 | . 1 2 . . 1 . Engine 4 | . 1 2 . . 1 . Core . | . . . . . . . Reactor . | . . . . . . . Propulsion 15 | 4 2 6 . . 2 1 Treads 12 | 3 . 6 . . 2 1 Leg 1 | 1 . . . . . . Wheel 2 | . 2 . . . . . Hover . | . . . . . . . Flight . | . . . . . . . Utility 15 | 1 4 4 3 . 1 2 Device 3 | . . . 1 . . 2 Storage 6 | 1 4 . 1 . . . Processor 2 | . . 1 1 . . . Hackware 1 | . . . . . 1 . Protection 3 | . . 3 . . . . Artifact . | . . . . . . . Weapon 16 | . 5 7 . . 3 1 Energy Gun 3 | . 1 2 . . . . Energy Cannon 4 | . . 2 . . 2 . Ballistic Gun 4 | . 1 2 . . 1 . Ballistic Cannon . | . . . . . . . Launcher 1 | . . . . . . 1 Special Weapon . | . . . . . . . Impact Weapon 3 | . 2 1 . . . . Slashing Weapon . | . . . . . . . Piercing Weapon . | . . . . . . . Special Melee Weapon 1 | . 1 . . . . . Unidentified Prototypes 5 | . . 4 1 . . . Parts Lost 28 | . 5 6 1 . 5 11 Power 4 | . 1 1 . . 1 1 Propulsion 9 | . 2 2 . . 2 3 Utility 5 | . . 1 . . . 4 Weapon 10 | . 2 2 1 . 2 3 Highest Loss Streak 4 | . 4 4 1 . 3 3 Average Slot Usage (%) 91 | . 98 93 91 88 97 80 Engine 10 | . 13 10 11 11 9 8 Treads 20 | . 26 18 22 22 21 14 Device 3 | . . . 4 11 . 6 Storage 22 | . 28 22 22 22 22 18 Processor 7 | . . 8 11 11 11 9 Hackware 2 | . . . . . 10 8 Protection 3 | . . 13 . . . . Energy Gun 4 | . 4 2 11 11 . . Energy Cannon 5 | . . 8 9 . 16 6 Ballistic Gun 7 | . 12 8 . . 4 7 Impact Weapon 2 | . 9 1 . . . . Naked Turns . | . . . . . . . Heaviest Build 111 | 14 71 84 111 76 80 81 Greatest Support 40 | 20 20 40 40 40 40 40 Greatest Overweight (x) 26 | 4 22 26 2 1 1 4 Average Overweight (x) 1 | . 1 1 1 1 1 2 Largest Inventory Capacity 28 | 8 20 20 28 20 20 20 Average Capacity 18 | 7 14 20 20 20 20 19 Most Carried 20 | 6 18 20 18 15 16 14 Average Carried 12 | 4 11 14 16 15 11 12 Final Capacity 20 | 8 20 20 20 20 20 12 Final Carried 18 | 4 13 18 15 15 11 12 Class Distribution -------------------- 60% | Hauler-Mutant 21% | Mutant 17% | Scavenger-Mutant Dominant Class ---------------- Mutant | -10/Materials Hauler-Mutant | -9/Materials Hauler-Mutant | -9/Mines Hauler-Mutant | -9/Exiles Hauler-Mutant | -8/Mines Scavenger-Mutant | -8/Materials Resources | -11 -10 -9 -9 -9 -8 -8 ----------- Run | Scr Mat Mat Min Exi Min Mat Matter Collected 1074 | 278 248 266 67 . 113 102 Remotely . | . . . . . . . Salvage Created 2388 | 94 573 819 182 . 392 328 Parts 148 | 6 26 57 20 . 17 22 Haulers Intercepted 3 | . . 2 . . . 1 Recyclers Shooed 3 | 1 . 2 . . . . Parts Field Recycled . | . . . . . . . Retrieved Matter . | . . . . . . . Parts Self-Destructed . | . . . . . . . Prevented . | . . . . . . . Kills | -11 -10 -9 -9 -9 -8 -8 ------- Run | Scr Mat Mat Min Exi Min Mat Combat Hostiles Destroyed 44 | . 10 12 10 . 7 5 Melee 2 | . 1 1 . . . . Guns 20 | . 7 3 5 . 4 1 Cannons 13 | . . 7 2 . 3 1 AOE 6 | . . . 3 . . 3 Classes Destroyed 11 | 2 3 4 2 . . . Worker 2 | . . . 1 . . 1 Tunneler 1 | 1 . . . . . . Hauler 3 | . . 2 . . . 1 Recycler 4 | 1 2 1 . . . . Operator 5 | . 4 1 . . . . Watcher 7 | . 1 4 . . . 2 Swarmer 10 | . . . 10 . . . Grunt 24 | . 10 5 . . 6 3 Brawler 3 | . . 1 . . 1 1 Duelist 1 | . . 1 . . . . Sentry 6 | . . 5 . . . 1 Best Kill Streak 7 | 2 2 3 7 . 3 3 Combat Bots Only 7 | . 2 3 7 . 3 2 Max Kills in Single Turn 2 | 1 1 1 2 . 1 2 Gunslinging . | . . . . . . . Exploded 2 | . . . 2 . . 1 Melee 1 | . 1 1 . . . . Uniques/NPCs Destroyed . | . . . . . . . Combat | -11 -10 -9 -9 -9 -8 -8 -------- Run | Scr Mat Mat Min Exi Min Mat Damage Taken 4611 | . 1053 1038 295 . 738 1487 Core 1146 | . 209 215 36 . 136 550 Absorbed by Shields . | . . . . . . . Core Remaining (%) 39 | 100 16 . . . 3 . Volleys Fired 182 | 8 47 55 11 . 31 30 Largest 2 | 2 2 2 2 . 2 2 Hottest 113 | 40 60 113 113 . 113 79 Shots Fired 309 | 16 93 96 22 . 41 41 Gun 229 | 16 93 63 11 . 22 24 Cannon 74 | . . 33 11 . 19 11 Launcher 6 | . . . . . . 6 Special . | . . . . . . . Kinetic 181 | 16 76 44 . . 21 24 Thermal 86 | . 17 48 11 . 10 . Explosive 6 | . . . . . . 6 Electromagnetic 36 | . . 4 11 . 10 11 Robot Hit Streak 17 | 10 11 14 6 . 17 9 Robot Miss Streak 5 | 2 5 4 4 . 2 2 Penetration Max . | . . . . . . . Secondary Targets . | . . . . . . . Shots Hit Robots 234 | 12 82 67 13 . 34 26 Core Hits 100 | 3 25 27 11 . 17 17 Critical Hits 3 | . . 2 1 . . . Critical Kills 2 | . . 1 1 . . . Critical Parts Destroyed 1 | . . 1 . . . . Melee Attacks 45 | . 30 15 . . . . Impact 42 | . 27 15 . . . . Slashing . | . . . . . . . Piercing . | . . . . . . . Sneak Attacks 8 | . 8 . . . . . Combat Hostiles . | . . . . . . . Follow-up Attacks 3 | . 3 . . . . . Damage Inflicted 4250 | 146 1333 1073 333 . 576 789 Guns 1732 | 146 571 395 117 . 302 201 Cannons 1030 | . . 473 82 . 274 201 Explosions 511 | . . . 134 . . 377 Melee 967 | . 762 205 . . . . Ramming 10 | . . . . . . 10 Kinetic 1358 | 146 451 281 . . 279 201 Thermal 1048 | . 120 569 216 . 143 . Explosive 377 | . . . . . . 377 Electromagnetic 490 | . . 18 117 . 154 201 Impact 967 | . 762 205 . . . . Slashing . | . . . . . . . Piercing . | . . . . . . . Highest Corruption . | . . . . . . . Average Corruption . | . . . . . . . Corruption Purged . | . . . . . . . Overload Shots . | . . . . . . . Overflow Damage 162 | . 137 6 8 . . 11 Projectiles 11 | . . . . . . 11 Explosions 8 | . . . 8 . . . Melee 143 | . 137 6 . . . . Knockbacks 7 | . 7 . . . . . Impact 7 | . 7 . . . . . Kinetic . | . . . . . . . Secondary . | . . . . . . . Self-Inflicted Damage 102 | . . . 73 . . 29 Shots 4 | . . . 3 . . 1 Rammed 9 | . . . . . . 9 Targets Rammed 9 | . . . . . . 9 Kicked . | . . . . . . . Crushed . | . . . . . . . Highest Temperature 379 | . 91 262 150 . 379 36 Average Temperature 58 | . 32 47 76 . 123 11 Received Heat Transfer 1884 | . 522 408 . . 387 567 Siege Activations . | . . . . . . . Robots Corrupted . | . . . . . . . Combat Hostiles . | . . . . . . . Parts Fried 11 | . 6 1 . . . 4 Impact Corruptions 10 | . 8 2 . . . . Robots Melted . | . . . . . . . Combat Hostiles . | . . . . . . . Parts Melted 2 | . . 1 . . 1 . Heat Transferred 1982 | . 275 1150 298 . 259 . Parts Sabotaged . | . . . . . . . Parts Stolen . | . . . . . . . Parts Stripped . | . . . . . . . Power Chain Reactions 3 | . . . 3 . . . Missiles Intercepted . | . . . . . . . Alert | -11 -10 -9 -9 -9 -8 -8 ------- Run | Scr Mat Mat Min Exi Min Mat Peak Influence 279 | 10 147 194 279 . 150 176 Average Influence 60 | 8 48 68 133 . 68 39 Maximum Alert Level 1 | . . . 1 . . . Low Security (%) 96 | 100 100 100 61 . 100 100 Level 1 3 | . . . 38 . . . Level 2 . | . . . . . . . Level 3 . | . . . . . . . Level 4 . | . . . . . . . Level 5 . | . . . . . . . High Security . | . . . . . . . Max Security . | . . . . . . . Squads Dispatched 10 | . 5 1 . . . 4 Investigation 1 | . . 1 . . . . Extermination . | . . . . . . . Reinforcement 5 | . 5 . . . . . Assault . | . . . . . . . Garrison 4 | . . . . . . 4 Intercept . | . . . . . . . Construction Impeded . | . . . . . . . Haulers Reinforced . | . . . . . . . Stealth | -11 -10 -9 -9 -9 -8 -8 --------- Run | Scr Mat Mat Min Exi Min Mat Distress Signals 6 | . 5 1 . . . . Communications Jammed . | . . . . . . . Distress Signals . | . . . . . . . Times Spotted 91 | . 32 25 10 . 9 15 Peak Tracking Total 6 | . 5 6 4 . 3 4 Tactical Retreats 7 | . 6 . . . 1 . Traps | -11 -10 -9 -9 -9 -8 -8 ------- Run | Scr Mat Mat Min Exi Min Mat Traps Triggered 3 | . 2 1 . . . . Indirectly . | . . . . . . . Trap Hack Attempts . | . . . . . . . Triggered . | . . . . . . . Disarmed . | . . . . . . . Reprogrammed . | . . . . . . . Reused . | . . . . . . . Traps Extracted . | . . . . . . . Installed . | . . . . . . . Triggered . | . . . . . . . Machines | -11 -10 -9 -9 -9 -8 -8 ---------- Run | Scr Mat Mat Min Exi Min Mat Machines Disabled 1 | . 1 . . . . . Max in Single Turn 1 | . 1 . . . . . Garrison Access 1 | . . . . . . 1 Machines Sabotaged . | . . . . . . . Garrisons Compromised . | . . . . . . . Overloaded Fab Kills . | . . . . . . . Fab Network Shutdowns . | . . . . . . . Hacking | -11 -10 -9 -9 -9 -8 -8 --------- Run | Scr Mat Mat Min Exi Min Mat Machines Accessed 12 | . 2 4 . 3 . 3 Terminals 7 | . 2 3 . . . 2 Fabricators . | . . . . . . . Repair Stations . | . . . . . . . Recycling Units . | . . . . . . . Scanalyzers 1 | . . 1 . . . . Garrison Access 1 | . . . . . . 1 Total Hacks 50 | . 5 12 . 26 . 7 Successful 41 | . 2 10 . 26 . 3 Failed 9 | . 3 2 . . . 4 Catastrophic 1 | . 1 . . . . . Database Lockouts . | . . . . . . . Manual 10 | . 2 7 . 1 . . Terminals 21 | . 5 11 . . . 5 Fabricators . | . . . . . . . Repair Stations . | . . . . . . . Recycling Units . | . . . . . . . Scanalyzers 1 | . . 1 . . . . Garrison Access 2 | . . . . . . 2 Terminal Hacks 34 | . 1 5 . 26 . 2 Record 26 | . . . . 26 . . Branch Access Points 1 | . . 1 . . . . Terminal Index 1 | . . . . . . 1 Scanalyzer Index 1 | . . . . . . 1 Locate Traps 1 | . . 1 . . . . Hauler Manifests 2 | . 1 1 . . . . Zone Layout 2 | . . 2 . . . . Fabricator Hacks . | . . . . . . . Repair Station Hacks . | . . . . . . . Recycling Unit Hacks . | . . . . . . . Scanalyzer . | . . . . . . . Garrison Access Hacks 1 | . . . . . . 1 Seal Access 1 | . . . . . . 1 Unauthorized Hacks 15 | . 3 12 . . . . Terminals 5 | . 1 4 . . . . Track 1 | . . 1 . . . . Botnet 2 | . . 2 . . . . Operators 2 | . 1 1 . . . . Fabricators . | . . . . . . . Repair Stations . | . . . . . . . Recycling Units . | . . . . . . . Scanalyzers 1 | . . 1 . . . . Extract 1 | . . 1 . . . . Garrison Access . | . . . . . . . Data Cores Recovered 1 | . . 1 . . . . Used . | . . . . . . . Hacking Detections 8 | . 2 3 . . . 3 Full Trace Events . | . . . . . . . Feedback Events . | . . . . . . . Feedback Blocked . | . . . . . . . Robot Schematics Acquired . | . . . . . . . Robots Built . | . . . . . . . Matter . | . . . . . . . Time . | . . . . . . . Total Robot Build Rating . | . . . . . . . Part Schematics Acquired 6 | . . 6 . . . . Parts Built . | . . . . . . . Matter . | . . . . . . . Time . | . . . . . . . Total Part Build Rating . | . . . . . . . Parts Repaired . | . . . . . . . Time . | . . . . . . . Parts Recycled . | . . . . . . . Recycled Matter . | . . . . . . . Retrieved Matter . | . . . . . . . Retrieved Components . | . . . . . . . Parts Scanalyzed . | . . . . . . . Part Schematics Acquired . | . . . . . . . Parts Damaged . | . . . . . . . Bothacking | -11 -10 -9 -9 -9 -8 -8 ------------ Run | Scr Mat Mat Min Exi Min Mat Used RIF Installer . | . . . . . . . Robots Hacked 1 | . 1 . . . . . Non-combat 1 | . 1 . . . . . Combat . | . . . . . . . Robot Hacks Applied 3 | . 3 . . . . . parse_system 1 | . 1 . . . . . no_distress 1 | . 1 . . . . . check_alert 1 | . 1 . . . . . Relay Couplers Released . | . . . . . . . Robots Rewired . | . . . . . . . Allies Hacked . | . . . . . . . Hacks Repelled . | . . . . . . . Allies | -11 -10 -9 -9 -9 -8 -8 -------- Run | Scr Mat Mat Min Exi Min Mat Total Allies . | . . . . . . . Largest Group . | . . . . . . . Highest-Rated Group . | . . . . . . . Highest-Rated Ally . | . . . . . . . Total Orders . | . . . . . . . Ally Attacks . | . . . . . . . Total Damage . | . . . . . . . Kills . | . . . . . . . Allies Corrupted . | . . . . . . . Allies Melted . | . . . . . . . Intel | -11 -10 -9 -9 -9 -8 -8 ------- Run | Scr Mat Mat Min Exi Min Mat Robot Analysis Total . | . . . . . . . Derelict Logs Recovered . | . . . . . . . Drone Launches . | . . . . . . . Drone Recoveries . | . . . . . . . Exploration | -11 -10 -9 -9 -9 -8 -8 ------------- Run | Scr Mat Mat Min Exi Min Mat Turns Passed 5915 | 86 1473 1427 450 785 407 1287 Spaces Moved 2472 | 36 612 587 227 437 161 412 Core 3 | 1 1 1 . . . . Treads 2397 | 26 569 565 227 437 161 412 Legs 9 | 9 . . . . . . Wheels 63 | . 42 21 . . . . Hover . | . . . . . . . Flight . | . . . . . . . Fastest Speed 110 | 120 110 110 180 180 180 180 Average Speed 187 | 152 184 191 180 180 180 202 Slowest Speed 1350 | 250 1150 1350 200 180 180 240 Overloaded Moves . | . . . . . . . Propulsion Burnouts . | . . . . . . . Robots Hopped . | . . . . . . . Cave-ins Triggered . | . . . . . . . Exploration Rate (%) 48 | 3 85 50 57 91 30 20 Regions Visited 6 Branch Regions 3 Pre-discovered Areas . | . . . . . . . Known Exits Taken 4 | . . 1 1 1 1 . Unknown Exits Taken 2 | 1 1 . . . . . Scrap Searched 2 | . . . 1 . 1 . Spaces Dug . | . . . . . . . Terrain Destroyed 54 | . . . 16 . . 38 Melee . | . . . . . . . Projectile . | . . . . . . . AOE 54 | . . . 16 . . 38 Actions | -11 -10 -9 -9 -9 -8 -8 --------- Run | Scr Mat Mat Min Exi Min Mat Total 3341 | 53 836 772 247 436 238 759 Wait 521 | . 111 73 3 . 37 297 Move 2466 | 35 611 586 226 436 160 412 Hop . | . . . . . . . Pick Up 37 | . 18 13 . . 1 5 Fast Attach 20 | 3 1 11 2 . 2 1 Attach 21 | . 5 7 1 . 5 3 Detach 3 | 1 . . . . 1 1 Swap 10 | 2 6 2 . . . . Drop 30 | 4 10 10 4 . 1 1 Fire 182 | 8 47 55 11 . 31 30 Melee 42 | . 27 15 . . . . Ram 7 | . . . . . . 7 Kick . | . . . . . . . Crush 2 | . . . . . . 2 Escape Stasis . | . . . . . . . Rewire . | . . . . . . . Trap . | . . . . . . . Miscellaneous . | . . . . . . . Route ------- -11/Scrapyard -10/Materials (discovered 4 exits: *Mat x2 / [*Min x2]) -9/Materials (discovered 2 exits: *Mat / *Min) -9/Mines -9/Exiles (discovered 2 exits: *Min x2) -8/Mines -8/Materials History --------- Turn | Location | Event 1 | -11/Scrapyard | Discovered new exit (range 2) 87 | -11/Scrapyard | Entered Materials 315 | -10/Materials | Build established: Mutant 735 | -10/Materials | Discovered new exit (range 16) 975 | -10/Materials | Discovered new exit (range 11) 1141 | -10/Materials | Discovered new exit (range 14) 1171 | -10/Materials | Discovered new exit (range 8) 1468 | -10/Materials | Core integrity fell below 50% 1519 | -10/Materials | Lost 4 parts (1p2n1w) 1559 | -10/Materials | Core integrity fell below 20% 1560 | -10/Materials | Entered another Materials area 1560 | -9/Materials | Evolved 2 slots: Utility x2 1562 | -9/Materials | Build established: Hauler-Mutant 1639 | -9/Materials | Lost 4 parts (1p2n1w) 2014 | -9/Materials | Identified exit to Mines 2649 | -9/Materials | Core integrity fell below 50% 2829 | -9/Materials | Discovered new exit (range 14) 2987 | -9/Materials | Entered Mines 3233 | -9/Mines | Destroyed 7 combat bots 3244 | -9/Mines | Found a damaged Exp. Sensor Array with a note attached 3253 | -9/Mines | Found Prototype Device 3253 | -9/Mines | Identified Exp. Sensor Array 3348 | -9/Mines | A weapon hastily lodged in a ceiling crevice suddenly fell to the ground 3430 | -9/Mines | Deemed a non-threat by the Exiles lab entrance 3430 | -9/Mines | Discovered new exit (range 5) 3435 | -9/Mines | Identified exit to Exiles 3437 | -9/Mines | Entered Exiles 3472 | -9/Exiles | Discovered new exit (range 14) 3515 | -9/Exiles | Met 8R-AWN 3554 | -9/Exiles | Met EX-HEX 3664 | -9/Exiles | Met EX-DEC 3701 | -9/Exiles | Visited The Gauntlet 3959 | -9/Exiles | Met EX-BIN 4201 | -9/Exiles | Discovered new exit (range 14) 4220 | -9/Exiles | Identified exit to Mines 4222 | -9/Exiles | Entered Mines 4241 | -8/Mines | Core integrity fell below 20% 4269 | -8/Mines | Lost 3 parts (2n1w) 4615 | -8/Mines | Discovered new exit (range 8) 4626 | -8/Mines | Identified exit to Materials 4629 | -8/Mines | Entered Materials 4629 | -8/Materials | Evolved 2 slots: Propulsion x1, Utility x1 4798 | -8/Materials | Build established: Scavenger-Mutant 4931 | -8/Materials | Garrison activated, responded to threat 5284 | -8/Materials | Garrison activated, responded to threat 5833 | -8/Materials | Lost 3 parts (1p1u1w) 5863 | -8/Materials | Core integrity fell below 50% 5894 | -8/Materials | Build established: Hauler-Mutant 5896 | -8/Materials | Core integrity fell below 20% 5916 | -8/Materials | Destroyed by Y-45 Defender with Heavy Assault Rifle Last Messages --------------- 05807_ U-05 Engineer builds a Wall. 05808_ U-05 Engineer lays Concrete. 05809_ U-05 Engineer builds a Wall. 05810_ U-05 Engineer lays Concrete. 05810_ U-05 Engineer builds a Wall. 05810_ U-05 Engineer lays Concrete. 05844_ Slammed into G-47 Trooper. 05846_ Slammed into Y-45 Defender. 05847_ Lgt. Treads destroyed. 05848_ Slammed into Y-45 Defender. 05870_ Destabilizing: System interference. 05870_ Imp. Signal Interpreter temporarily disabled. 05871_ G-47 Trooper destroyed. 05881_ Slammed into Y-45 Defender. 05890_ R-06 Scavenger collects Aluminum Leg. 05892_ Slammed into Y-45 Defender. 05907_ Hacking Suite destroyed. 05910_ Hcp. Storage Unit destroyed. 05913_ Imp. Signal Interpreter destroyed. 05914_ Slammed into Y-45 Defender. Map ----- +----------------------------------------------------+ | ????????????????????#! """ ### """ #???????? | | ????????????????????# ! """ + #???????? | | ????????????????????# """ ### #???????? | | ????????????????????# ! #?# ###+####?????? | | ????????????????????#####+####?# # #?????? | | ??????????????????????# ##### + =#?????? | | ??????????????????????# # #?????? | | ??????????????????????# # """ #?????? | | ??????????????????????# ##+##+## """ #?????? | | ??????????????????????## ## ## """ #?????? | | ???????????????????????# ##"" #########?????? | | ???????????????????????# ##"Y ! #?????????????? | | ??????????????######???#% ##"" #?????????????? | | ?????????????? #???# %## #?????????????? | | ??????????????? #???# ###########??????????? | | ??????????????? #???# %## #??????????? | | ???????????????# #???# ## #??????????? | | ???????????????# #???# ## #??????????? | | ???????????????# #???# + #??????????? | | ???????????????# #???# ## #??????????? | | ???????????????# #???# ## #??????????? | | ???????????????# #???# ## #??????????? | | ???????????????# #???# ## #??????????? | | ?????????####### %###?# ## #??????????? | | ?????????# # %##### ######+####??????????? | | ?????????# r@ #??????????? | | ?????????# Y #??????????? | | ?????????# r % % #??????????? | | ?????????# a *########+########+####??????????? | | ?########## #### * # [!* #???????????? | | ?# # #?## # ""#???????????? | | ?# """ # #??# # ""#???????????? | | ?# """ + ##?# """ # """ T"#???????????? | | ?# """ ### """ """ # """ ""#???????????? | | ?# # + "G """ # """ ""#???????????? | | ?# """ ### """ # #???????????? | | ?# """ ##?# =# """ #???????????? | | ?# """ ##?########### """ #???????????? | | ?# # #???????????# """ #???????????? | | ?########## ##???????????# #???????????? | | ??????????# #????????????#########???????????? | | ??????????# ????????????????????????????????? | | ??????????# ???????????????????????????????? | | ??????????# ??????????????????????????????? | | ?????????? ??????????????????????????????? | | ?????????? % ?????????????????????????????? | | ?????????? % ????????????????????????????? | | ?????????? ????????????????????????????? | | ?????????? ##?????????????????????????????? | | ??????????# ????????????????????????????????? | +----------------------------------------------------+ Best States ------------- Heat Dissipation 31 Energy Generation 18 Energy Capacity 280 Matter Stores 300 Matter Capacity 300 Sight Range 16 Robot Scan Range 30 Terrain Scan Density 10 Armor Coverage 300 Evasion (%) 40 Targeting Accuracy 6 Recoil Reduction 2 Offensive Hacking 10 Item Schematics ----------------- Rocket Launcher | -9/Materials | Extracted Cooling System | -9/Materials | Extracted Mni. Grenade Launcher | -9/Materials | Extracted EM Pulse Gun | -9/Materials | Extracted Assault Rifle | -9/Materials | Extracted Transport Network Coupler | -9/Materials | Extracted Robot Schematics ------------------ None Fabricated ------------ Nothing Alien Tech Used ----------------- None Achievements -------------- None Challenges ------------ None Game ------ Seed EnhancedGreatStabilizer Manual? 0 Play Time 00:38:12 Cumulative 75.1 hours Start 2019.12.04 @ 19:49:29 End 2019.12.04 @ 20:27:21 Sessions 1 Manual Loads 0 Difficulty Rogue Special Mode None Game No. 96 Rogue 96 Adventurer 0 Explorer 0 Win Type - Total 2 Types 2/0/0/0/0/0/0 Lore% 61 Gallery% 54 Achievement% 45 Wizard Run 0 Options --------- ASCII 0 Keyboard 0 Movement Mouse Keybinds 0 Fullscreen 2 Font 18/SmallcapsGlow Map View 76x50 Tactical HUD 1 Map Filters NONE Filters NONE Steam 1 RUN: 94b9c604-551c-48c0-be7d-e13024239bd5